Cogmind - Beta 15 @@@ ROGUE MODE // 2025.06.12 @ 18:19:41 Player: Carbonated Result: Destroyed by PG-23X(R) with Subdweller Machine Gun Performance ------------- Evolutions (0) 0 Regions Visited (2) 400 Robots Destroyed (10) 50 Value Destroyed (196) 196 Prototype IDs (0) 0 Alien Tech Used (0) 0 Bonus (0) 0 TOTAL SCORE: 646 Bonus ------- None Cogmind --------- Core Integrity 0/250 Matter 300/300 Energy 250/250 System Corruption 0% Temperature Cool (0) Movement Core (450) Ox8 Location -10/Subcaves Parts ------- > --- POWER (1) -------- Ion Engine > --- PROPULSION (2) --- (None) > --- UTILITY (2) ------ Large Storage Unit > --- WEAPON (2) ------- (None) > --- INVENTORY (15) --- Ion Engine Light Ion Engine Aluminum Leg Aluminum Leg Wheel Wheel Peak State ------------ > --- POWER ------------ Light Ion Engine > --- PROPULSION ------- Aluminum Leg Aluminum Leg > --- UTILITY ---------- Large Storage Unit Seismic Detector > --- WEAPON ----------- Assault Rifle Light Assault Rifle > --- INVENTORY -------- (None) [Rating: 7] Favorites ----------- Power Ion Engine Engine Ion Engine Propulsion Aluminum Leg Leg Aluminum Leg Utility Large Storage Unit Device Seismic Detector Storage Large Storage Unit Weapon Light Assault Rifle Ballistic Gun Light Assault Rifle Build | -11 -10 -10 ------- Run | Yrd Mat Sub Slots Evolved . | . . . Power . | . . . Propulsion . | . . . Utility . | . . . Weapon . | . . . Parts Attached 12 | 5 7 . Power 2 | 1 1 . Engine 2 | 1 1 . Core . | . . . Reactor . | . . . Propulsion 4 | 2 2 . Treads . | . . . Leg 4 | 2 2 . Wheel . | . . . Hover . | . . . Flight . | . . . Utility 2 | . 2 . Device 1 | . 1 . Storage 1 | . 1 . Processor . | . . . Hackware . | . . . Protection . | . . . Artifact . | . . . Weapon 4 | 2 2 . Energy Gun . | . . . Energy Cannon . | . . . Ballistic Gun 4 | 2 2 . Ballistic Cannon . | . . . Launcher . | . . . Special Weapon . | . . . Impact Weapon . | . . . Slashing Weapon . | . . . Piercing Weapon . | . . . Special Melee Weapon . | . . . Unidentified Prototypes . | . . . Parts Lost 9 | . 4 5 Power 1 | . 1 . Propulsion 4 | . 2 2 Utility 1 | . . 1 Weapon 3 | . 1 2 Highest Loss Streak 4 | . 4 4 To Critical Strikes . | . . . Average Backups 2 | . 1 4 Power . | . . 1 Propulsion 1 | . 1 2 Utility . | . . . Weapon . | . . . Tool/Special . | . . . Unused Backups 13 | . 7 6 Power 2 | . . 2 Propulsion 5 | . 1 4 Utility 3 | . 3 . Weapon 3 | . 3 . Tool/Special . | . . . Average Slot Usage (%) 89 | . 86 91 Engine 12 | . 10 14 Leg 25 | . 23 27 Device 10 | . 12 7 Storage 13 | . 13 14 Ballistic Gun 26 | . 25 26 Peak Build Rating 7 | 5 7 7 Average Rating 6 | 3 6 6 On Entrance 4 | . 5 7 Naked Turns . | . . . Heaviest Build 28 | 6 28 28 Greatest Support 20 | 20 20 20 Greatest Overweight (x) 8 | . 8 2 Average Overweight (x) 1 | . 1 1 Largest Inventory Capacity 15 | 5 15 15 Average Capacity 14 | 5 14 15 Most Carried 8 | 3 8 6 Average Carried 2 | . 1 4 Final Capacity 15 | 5 15 15 Final Carried 6 | . 3 6 Class Distribution -------------------- 100% | Mutant Dominant Class ---------------- Mutant | -10/Materials Mutant | -10/Subcaves Resources | -11 -10 -10 ----------- Run | Yrd Mat Sub Matter Collected 380 | 264 108 8 Remotely . | . . . Salvage Created 263 | 35 218 10 Parts 24 | 1 22 1 Haulers Intercepted . | . . . Recyclers Shooed 1 | . 1 . Parts Field Recycled . | . . . Retrieved Matter . | . . . Parts Self-Destructed 16 | . . 16 Prevented . | . . . Kills | -11 -10 -10 ------- Run | Yrd Mat Sub Combat Hostiles Destroyed 10 | 1 8 1 Guns 10 | 1 8 1 Classes Destroyed 2 | 1 1 . Swarmer 6 | . 5 1 Grunt 4 | 1 3 . Best Kill Streak 4 | 1 4 1 Combat Bots Only 4 | 1 4 1 Max Kills in Single Turn 1 | 1 1 1 Gunslinging . | . . . Exploded . | . . . Melee . | . . . Uniques/NPCs Destroyed . | . . . Combat | -11 -10 -10 -------- Run | Yrd Mat Sub Hostile Shots Fired 118 | 5 84 29 Missed 33 | 2 25 6 Hits 85 | 3 59 23 Projectile 85 | 3 59 23 Critical Strikes 2 | . . 2 Damage Taken 1044 | 33 530 481 Core 262 | . 105 157 Absorbed by Shields . | . . . Core Remaining (%) 100 | 100 . . Volleys Fired 54 | 4 27 23 Largest 2 | 2 2 2 Hottest 40 | 40 40 40 Shots Fired 82 | 8 43 31 Gun 82 | 8 43 31 Cannon . | . . . Launcher . | . . . Special . | . . . Kinetic 82 | 8 43 31 Thermal . | . . . Explosive . | . . . Electromagnetic . | . . . Robot Hit Streak 15 | 6 6 15 Robot Miss Streak 3 | 1 3 1 Penetration Max . | . . . Secondary Targets . | . . . Shots Hit Robots 57 | 7 27 23 Core Hits 17 | 3 11 3 Critical Kills . | . . . Critical Parts Destroyed 1 | . 1 . Critical Strikes 2 | . 1 1 Destroy 2 | . 1 1 Melee Attacks . | . . . Impact . | . . . Slashing . | . . . Piercing . | . . . Sneak Attacks . | . . . Combat Hostiles . | . . . Follow-up Attacks . | . . . Damage Inflicted 507 | 78 243 186 Guns 505 | 77 243 185 Cannons . | . . . Explosions . | . . . Melee . | . . . Ramming 2 | 1 . 1 Kinetic 505 | 77 243 185 Thermal . | . . . Explosive . | . . . Electromagnetic . | . . . Impact . | . . . Slashing . | . . . Piercing . | . . . Highest Corruption . | . . . Average Corruption . | . . . Corruption Purged . | . . . Corruption Blocked . | . . . Overload Shots . | . . . Overflow Damage . | . . . Projectiles . | . . . Explosions . | . . . Melee . | . . . Knockbacks . | . . . Impact . | . . . Kinetic . | . . . Secondary . | . . . Self-Inflicted Damage . | . . . Shots . | . . . Rammed 1 | . . 1 Targets Rammed 4 | 1 . 3 Kicked 3 | 1 . 2 Crushed . | . . . Highest Temperature 12 | 6 12 . Average Temperature 7 | 6 7 . Received Heat Transfer 126 | 18 108 . Siege Activations . | . . . Martial Activations . | . . . Shielding Activations . | . . . Robots Disrupted . | . . . Combat Hostiles . | . . . Robots Corrupted . | . . . Combat Hostiles . | . . . Parts Fried . | . . . Impact Corruptions . | . . . Robots Melted . | . . . Combat Hostiles . | . . . Parts Melted . | . . . Heat Transferred . | . . . Parts Sabotaged . | . . . Parts Stolen . | . . . Parts Stripped . | . . . Power Chain Reactions . | . . . Alert | -11 -10 -10 ------- Run | Yrd Mat Sub Maximum Alert Level . | . . . Low Security (%) 100 | 100 100 . Level 1 . | . . . Level 2 . | . . . Level 3 . | . . . Level 4 . | . . . Level 5 . | . . . High Security . | . . . Max Security . | . . . Peak Influence 60 | 20 60 . Initial 13 | . 13 . Average 10 | 2 11 . Influence Increases 242 | 20 192 30 Destroy 0b10 Robot/C 200 | 20 160 20 Destroy Leader 40 | . 30 10 Successful Hack 2 | . 2 . Influence Decreases 242 | . 212 30 Entered New Map 7 | . 7 . Time Decay 205 | . 175 30 Lost Part 30 | . 30 . Squads Dispatched 2 | . 2 . Investigation 2 | . 2 . Extermination . | . . . Reinforcement . | . . . Assault . | . . . Garrison . | . . . Intercept . | . . . Searches Triggered . | . . . Construction Impeded . | . . . Haulers Reinforced . | . . . Active Scanning Responses . | . . . Cargo Convoy Interrupts . | . . . Stealth | -11 -10 -10 --------- Run | Yrd Mat Sub Distress Signals . | . . . Communications Jammed . | . . . Distress Signals . | . . . Times Spotted 13 | 1 10 2 Peak Tracking Total 5 | 1 5 1 Tactical Retreats . | . . . Traps | -11 -10 -10 ------- Run | Yrd Mat Sub Traps Triggered 2 | . 1 1 Indirectly . | . . . Trap Hack Attempts . | . . . Triggered . | . . . Disarmed . | . . . Reprogrammed . | . . . Reused . | . . . Traps Extracted . | . . . Installed . | . . . Triggered . | . . . Machines | -11 -10 -10 ---------- Run | Yrd Mat Sub Machines Disabled . | . . . Max in Single Turn . | . . . Machines Repaired . | . . . Machines Dismantled . | . . . Machines Sabotaged . | . . . Overloaded Fab Kills . | . . . Hacking | -11 -10 -10 --------- Run | Yrd Mat Sub Machines Accessed 2 | . 2 . Terminals 2 | . 2 . Fabricators . | . . . Repair Stations . | . . . Recycling Units . | . . . Scanalyzers . | . . . Garrison Access . | . . . Total Hacks 9 | . 9 . Successful 4 | . 4 . Failed 4 | . 4 . Catastrophic . | . . . Database Lockouts 1 | . 1 . Manual 9 | . 9 . Terminals 9 | . 9 . Fabricators . | . . . Repair Stations . | . . . Recycling Units . | . . . Scanalyzers . | . . . Garrison Access . | . . . Terminal Hacks 4 | . 4 . Record 4 | . 4 . Fabricator Hacks . | . . . Repair Station Hacks . | . . . Recycling Unit Hacks . | . . . Scanalyzer . | . . . Garrison Access Hacks . | . . . Unauthorized Hacks . | . . . Terminals . | . . . Fabricators . | . . . Repair Stations . | . . . Recycling Units . | . . . Scanalyzers . | . . . Garrison Access . | . . . Data Cores Recovered . | . . . Used . | . . . Hacking Detections 2 | . 2 . Full Trace Events 1 | . 1 . Feedback Events . | . . . Feedback Blocked . | . . . Robot Schematics Acquired . | . . . Robots Built . | . . . Authchips . | . . . Time . | . . . Total Robot Build Rating . | . . . Part Schematics Acquired . | . . . Parts Built . | . . . Authchips . | . . . Time . | . . . Total Part Build Rating . | . . . Parts Repaired . | . . . Time . | . . . Parts Recycled . | . . . Recycled Matter . | . . . Retrieved Matter . | . . . Retrieved Components . | . . . Parts Scanalyzed . | . . . Part Schematics Acquired . | . . . Parts Damaged . | . . . Bothacking | -11 -10 -10 ------------ Run | Yrd Mat Sub Used RIF Installer . | . . . Robots Hacked . | . . . Non-combat . | . . . Combat . | . . . Robot Hacks Applied . | . . . Relay Couplers Released . | . . . Fabnet Peak Effective % . | . . . Robots Rewired . | . . . Allies Hacked . | . . . Hacks Repelled . | . . . Allies | -11 -10 -10 -------- Run | Yrd Mat Sub Total Allies . | . . . Largest Group . | . . . Highest-Rated Group . | . . . Highest-Rated Ally . | . . . Total Orders . | . . . Ally Attacks . | . . . Total Damage . | . . . Kills . | . . . Allies Corrupted . | . . . Allies Melted . | . . . Intel | -11 -10 -10 ------- Run | Yrd Mat Sub Active Infowar (turns) 1110 | . 701 409 Seismic 1110 | . 701 409 Robot Analysis Total . | . . . Derelict Logs Recovered 1 | . . 1 Drone Launches . | . . . Drone Recoveries . | . . . Exploration | -11 -10 -10 ------------- Run | Yrd Mat Sub Turns Passed 1624 | 112 749 763 Spaces Moved 779 | 91 320 368 Core 52 | 27 25 . Treads . | . . . Legs 727 | 64 295 368 Wheels . | . . . Hover . | . . . Flight . | . . . Fastest Speed 50 | 50 120 190 Average Speed 185 | 99 204 190 Slowest Speed 450 | 120 450 260 Overloaded Moves . | . . . Propulsion Burnouts . | . . . Robots Hopped . | . . . Potential Cave-ins . | . . . Cave-ins Triggered . | . . . Exploration Rate (%) 18 | 5 29 20 Regions Visited 2 Branch Regions 1 Pre-discovered Areas . | . . . Known Exits Taken . | . . . Unknown Exits Taken 2 | 1 1 . Scrap Searched . | . . . Spaces Dug . | . . . Terrain Destroyed . | . . . Melee . | . . . Projectile . | . . . AOE . | . . . Terrain Rammed . | . . . Walls Destroyed . | . . . Machines Disabled . | . . . Actions | -11 -10 -10 --------- Run | Yrd Mat Sub Total 885 | 105 383 397 Wait 5 | . 5 . Move 777 | 90 319 368 Hop . | . . . Pick Up 25 | 5 17 3 Fast Attach . | . . . Attach 11 | 5 6 . Detach . | . . . Swap 1 | . 1 . Drop 8 | . 8 . Fire 54 | 4 27 23 Melee . | . . . Ram 1 | . . 1 Kick 3 | 1 . 2 Crush . | . . . Escape Stasis . | . . . Rewire . | . . . Trap . | . . . Miscellaneous . | . . . Route ------- -11/Scrapyard -10/Materials (discovered 2 exits: [*Mat] / [*Sub]) -10/Subcaves (discovered 1 exit: Rec) History --------- Turn | Location | Event 2 | -11/Scrapyard | Met Revision 17 87 | -11/Scrapyard | Discovered new exit (range 8) 113 | -11/Scrapyard | Entered Materials 301 | -10/Materials | Build established: Mutant 321 | -10/Materials | Central database locked down 427 | -10/Materials | Lost 4 parts (1p2n1w) 611 | -10/Materials | Discovered new exit (range 16) 626 | -10/Materials | Discovered new exit (range 9) 862 | -10/Materials | Entered Subcaves 986 | -10/Subcaves | Identified exit to Recycling 1177 | -10/Subcaves | Core integrity fell below 50% 1622 | -10/Subcaves | Core integrity fell below 20% 1625 | -10/Subcaves | Destroyed by PG-23X(R) with Subdweller Machine Gun Last Messages --------------- machines by right-clicking on them, and walls via Ctrl-RMB (or as any other object in Keyboard Mode). Hovering the cursor over an object also shows its Armor in the Scan window. Subatomizers dissect the Wheel. Acquired 4 matter. Subatomizers dissect the Wheel, destroying it. Lgt. Assault Rifle destroyed. [Achievement: Crack Shot] PG-23X(R) suffers critical hit (Destroy). Aluminum Leg destroyed. Lgt. Assault Rifle destroyed. Kicked PG-23X(R). Ramming works as a last resort when unarmed or blocked, but can have serious negative consequences. Kicked PG-23X(R). Aluminum Leg destroyed. Slammed into PG-23X(R). Map ----- +----------------------------------------------------+ | ?????????????????????????????????????????????????? | | ?????????????????????????????????????????????????? | | ?????????????????????????????????????????????????? | | ?????????????????????????????????????????????????? | | ?????????????????????????????????????????????????? | | ?????????????????????????????????????????????????? | | ?????????????????????????????????????????????????? | | ?????????????????????????????????????????????????? | | ?????????????????????????????????????????????????? | | ?????????????????????????????????????????????????? | | ?????????????????????????????????????????????????? | | ???????????????????????????? ????????????????????? | | ??????????????????????????? ????????????????????? | | ??????????????????????????? ????????????????????? | | ??????????????????????????? ????????????????????? | | ??????????????????????????# #????????????????????? | | ?????????????????????????? #????????????????????? | | ?????????????????????????? ###??????????????????? | | ?????????????????????????? ##?????????????????? | | ?????????????????????????? #?????????????????? | | ????????????????????????## #?????????????????? | | ????????????????????????# ??????????????????? | | ????????????????????????# ???????????????????? | | ????????????????????????# #????????????????????? | | ??????##???????????????##R #?????????????????????? | | ????## ???????????????## @#??????????????????????? | | ???# ???????????????## ##?????????????????????? | | ??# ???????????????## ########??????????????? | | ?# ????????????????# ##?????????????? | | ? ##???????????????# #?????????????? | | # #???? ??????????# ## ## #?????????????? | | ##???# ????????### ## ## ##?????????????? | | ##??# ???????# ### ###??????????????? | | #??? =#??????### #### #????????????????? | | """"#???|% ????????# ##?# ##????????????????? | | ##""#???#& ????????# ##?# #?????????????????? | | ##"""?###% ????????## #### #?????????????????? | | ""#"""?# ?????????### #### #?????????????????? | | "##""#??# %##????????## ##?##?????????????????? | | """""#??## "#????##### #######??????????????? | | """" ##?#""" ##??## ## ##?????????????? | | ####"" #### = #????????????? | | #""" % #???????????? | | """" # # ##???????????? | | "" """ ### ###????????????? | | "" #?### ##??????????????? | | % ## ###????#######???????????????? | | ## ## #### #????????????????????????????? | | ####### ##??## #???????????????????????????? | | #?????####????# ##???????????????????????????? | +----------------------------------------------------+ Best States ------------- Heat Dissipation 25 Energy Generation 10 Energy Capacity 250 Matter Stores 300 Matter Capacity 300 Sight Range 16 Terrain Scan Density 10 Evasion (%) 55 Item Schematics ----------------- None Robot Schematics ------------------ None Fabricated ------------ Nothing Repaired ---------- Nothing Alien Tech Used ----------------- None Achievements -------------- Crack Shot Challenges ------------ None Game ------ Seed DrainedSingularityCompanion Manual? 0 Play Time 00:15:10 Cumulative 0.3 hours Start 2025.06.12 @ 03:11:34 End 2025.06.12 @ 18:19:41 Sessions 4 Manual Loads 0 Difficulty Rogue Special Mode None Game No. 2 Rogue 2 Adventurer 0 Explorer 0 Win Type - Total 0 Types 0/0/0/0/0/0/0/0/0/0 Lore% 0 Gallery% 1 Achievement% 2 Wizard Run 0 Options --------- Layout 2 ASCII 0 Keyboard 1 Movement Numpad Keybinds 0 Fullscreen 1 Font 24/Smallcaps Map View 50x44 Zoom Use 0% Tactical HUD 0 Map Filters NONE Filters NONE Steam 1 RUN: 25a63233-2d4e-45fc-9416-286fb3a39582